Workbook

Sheet Лист1
A1: Анализ исполнения сметы доходов и расходов по бюджетным счетам
A2: на 1 января 2012года
A3: Учреждение: МБОУ Карповская средняя Общеобразовательная школа
A5: кфср | B5: кцср | C5: квр | D5: косгу | E5: доп.фк | F5: доп.эк | G5: доп.кр | H5: Утверждено бюджетных ассигнований на год | I5: Кассовые расходы | K5: Фактические расходы
I6: руб. | J6: % | K6: руб. | L6: %
A7: 0702 | B7: 4219901 | C7: 001 | D7: 211 | E7: 320 | G7: 000 | H7: 4430047 | I7: 4430047 | J7: =I7/H7*100 -> 100 | K7: 4430047 | L7: =K7/H7*100 -> 100
A8: 0702 | B8: 4219901 | C8: 001 | D8: 212 | E8: 320 | G8: 000 | H8: 32650 | I8: 32650 | J8: =I8/H8*100 -> 100 | K8: 31162.93 | L8: =K8/H8*100 -> 95.44542113
A9: 0702 | B9: 4219901 | C9: 001 | D9: 213 | E9: 320 | G9: 000 | H9: 1555176.82 | I9: 1555176.82 | J9: 100 | K9: 1555176.82 | L9: 100
A10: 0702 | B10: 4219901 | C10: 001 | D10: 221 | E10: 320 | G10: 000 | H10: 34651.92 | I10: 34651.92 | J10: 100 | K10: 34599.46 | L10: 99.84860868
A11: 0702 | B11: 4219901 | C11: 001 | D11: 222 | E11: 320 | G11: 000 | H11: 8674.8 | I11: 8674.8 | J11: 100 | K11: 9125.8 | L11: 105.1989671
A12: 0702 | B12: 4219901 | C12: 001 | D12: 226 | E12: 320 | G12: 000 | H12: 83779.66 | I12: 83779.66 | J12: 100 | K12: 69487.66 | L12: 82.94096682
A13: 0702 | B13: 4219901 | C13: 001 | D13: 290 | E13: 320 | G13: 000 | H13: 10000 | I13: 10000 | J13: 100 | K13: 10000 | L13: 100
A14: 0702 | B14: 4219901 | C14: 001 | D14: 310 | E14: 320 | G14: 000 | H14: 216640 | I14: 216640 | J14: 100
A15: 0702 | B15: 4219901 | C15: 001 | D15: 310 | E15: 320 | F15: 313 | G15: 000 | H15: 2246 | I15: 2246 | J15: 100 | L15: 0
A16: 0702 | B16: 4219901 | C16: 001 | D16: 340 | E16: 320 | G16: 000 | H16: 78713.62 | I16: 78713.62 | J16: 100 | K16: 78713.62 | L16: 100
A17: итого | B17: 4219901 | E17: 320 | H17: =SUM(H7:H16) -> 6452579.82 | I17: =SUM(I7:I16) -> 6452579.82 | J17: 100 | K17: =SUM(K7:K16) -> 6218313.29 | L17: 96.36941291
A18: 0702 | B18: 4219902 | C18: 001 | D18: 223 | E18: 000 | F18: 001 | G18: 000 | H18: 213726.41 | I18: 213726.41 | J18: 100 | K18: 213726.14 | L18: 99.99987367
A19: 0702 | B19: 4219902 | C19: 001 | D19: 223 | E19: 000 | F19: 002 | G19: 000 | H19: 918850.3 | I19: 918850.3 | J19: 100 | K19: 765048.97 | L19: 83.26154652
A20: 0702 | B20: 4219902 | C20: 001 | D20: 223 | E20: 000 | F20: 003 | G20: 000 | H20: 19985.52 | I20: 19985.52 | J20: 100 | K20: 19985.52 | L20: 100
A21: 0702 | B21: 4219902 | C21: 001 | D21: 225 | E21: 000 | G21: 000 | H21: 64810.63 | I21: 64810.63 | J21: 100 | K21: 61994.18 | L21: 95.65433942
A22: 0702 | B22: 4219902 | C22: 001 | D22: 226 | E22: 000 | G22: 060 | H22: 14000 | I22: 14000 | J22: 100 | K22: 14000 | L22: 100
A23: 0702 | B23: 4219902 | C23: 001 | D23: 262 | E23: 000 | G23: 096 | H23: 1000 | I23: 1000 | J23: 100 | K23: 1000 | L23: 100
A24: 0702 | B24: 4219902 | C24: 001 | D24: 290 | E24: 000 | G24: 000 | H24: 1101.44 | I24: 1101.44 | J24: 100 | K24: 1101.44 | L24: 100
A25: 0702 | B25: 4219902 | C25: 001 | D25: 290 | E25: 000 | G25: 107 | H25: 99615.71 | I25: 99615.71 | J25: 100 | K25: 75577.78 | L25: 75.86933828
A26: 0702 | B26: 4219902 | C26: 001 | D26: 340 | E26: 000 | G26: 000 | H26: 25000 | I26: 25000 | J26: 100 | K26: 68311.59 | L26: 273.24636
A27: 0702 | B27: 4219902 | C27: 001 | D27: 340 | E27: 000 | G27: 070 | H27: 3976 | I27: 3976 | J27: 100 | K27: 3976 | L27: 100
A28: 0702 | B28: 4219902 | C28: 001 | D28: 340 | E28: 028 | G28: 077 | H28: 30000 | I28: 30000 | J28: 100 | K28: 30000 | L28: 100
A29: итого | B29: 4219902 | H29: =SUM(H18:H28) -> 1392066.01 | I29: =SUM(I18:I28) -> 1392066.01 | J29: 100 | K29: =SUM(K18:K28) -> 1254721.62 | L29: 90.13377318
A30: 0702 | B30: 5200900 | C30: 001 | D30: 211 | E30: 545 | F30: 000 | G30: 000 | H30: 80000 | I30: 72361.53 | J30: 90.4519125 | K30: 72361.53 | L30: 90.4519125
A31: 0702 | B31: 5200900 | C31: 001 | D31: 213 | E31: 545 | F31: 000 | G31: 000 | H31: 27500 | I31: 24747.65 | J31: 89.99145455 | K31: 24747.65 | L31: 89.99145455
A32: итого | B32: 5200900 | H32: =H30+H31 -> 107500 | I32: =I30+I31 -> 97109.18 | J32: 90.33412093 | K32: =K30+K31 -> 97109.18 | L32: 90.33412093
A33: 0707 | B33: 4320200 | C33: 500 | D33: 225 | E33: 000 | F33: 000 | G33: 070 | H33: 3685 | I33: 3685 | J33: 100 | K33: 3685 | L33: 100
A34: 0707 | B34: 4320200 | C34: 500 | D34: 226 | E34: 000 | F34: 000 | G34: 000 | H34: 1650 | I34: 1650 | J34: 100 | K34: 1650 | L34: 100
A35: 0707 | B35: 4320200 | C35: 500 | D35: 226 | E35: 000 | F35: 000 | G35: 070 | H35: 42130 | I35: 42130 | J35: =I35/H35*100 -> 100 | K35: 42130 | L35: =K35/H35*100 -> 100
A36: 0707 | B36: 4320200 | C36: 500 | D36: 310 | E36: 000 | F36: 000 | G36: 070 | H36: 20435 | I36: 20435 | J36: =I36/H36*100 -> 100 | L36: =K36/H36*100 -> 0
A37: 0707 | B37: 4320200 | C37: 500 | D37: 340 | E37: 000 | F37: 000 | G37: 070 | H37: 13750 | I37: 13750 | J37: =I37/H37*100 -> 100 | K37: 13750 | L37: =K37/H37*100 -> 100
A38: итого | B38: 4320200 | H38: =SUM(H33:H37) -> 81650 | I38: =SUM(I33:I37) -> 81650 | J38: 100 | K38: =SUM(K33:K37) -> 61215 | L38: 74.97244336
A39: 0702 | B39: 4362101 | C39: 001 | D39: 310 | E39: 576 | F39: 313 | G39: 000 | H39: 128000 | I39: 128000 | J39: =I39/H39*100 -> 100 | L39: =K39/H39*100 -> 0
A40: итого | B40: 4362101 | H40: =H39 -> 128000 | I40: =I39 -> 128000 | J40: 100 | K40: =K39 -> 0 | L40: 0
A41: 709 | B41: 7950000 | C41: 500 | D41: 225 | E41: 000 | F41: 000 | G41: 022 | H41: 22750 | I41: 22750 | J41: =I41/H41*100 -> 100 | K41: 22750 | L41: =K41/H41*100 -> 100
A42: 0709 | B42: 7950000 | C42: 500 | D42: 340 | E42: 000 | F42: 000 | G42: 022 | H42: 20000 | I42: 20000 | J42: =I42/H42*100 -> 100 | K42: 20000 | L42: =K42/H42*100 -> 100
H43: =H41+H42 -> 42750 | I43: =I41+I42 -> 42750 | J43: 100 | K43: =K41+K42 -> 42750 | L43: 100
B44: всего | H44: =H17+H29+H32+H38+H40+H43 -> 8204545.83 | I44: =I17+I29+I32+I38+I40+I43 -> 8194155.01 | J44: 99.87335289 | K44: =K17+K29+K32+K38+K40+K43 -> 7674109.09 | L44: 93.53484335
A46: Руководитель | I46: Гл.бухгалтер
A48: " ___20_____" _января______ 2012 года

Sheet Лист2

Sheet Лист3
